Cogmind - Beta 17.1 --- EXPLORER MODE // 2026.08.24 @ 22:02:42 // Winter2019/RPGLIKE Player: Goose Result: Smashed by cave-in Performance ------------- Evolutions (1) 500 Regions Visited (3) 600 Robots Destroyed (38) 190 Value Destroyed (1209) 1209 Prototype IDs (10) 200 Alien Tech Used (0) 0 Bonus (157) 157 TOTAL SCORE: 2856 Bonus ------- High Alert Combat Kills 11 Follower Combat Kills 146 Cogmind --------- Core Integrity 0/600 Matter 308/400 Energy 980/980 System Corruption 2% Temperature Cool (0) Movement Hovering (150) Ox2 Location -9/Storage Parts ------- > --- POWER (1) -------- Heavy Ion Engine > --- PROPULSION (1) --- Cooled Gravmag System > --- UTILITY (9) ------ Experimental Heat Sink Large Battery Advanced Energy Well Medium Matter Pod Signal Interpreter Actuator Array Hardened Light Armor Plating > --- WEAPON (1) ------- Improved Light Cannon > --- INVENTORY (3) ---- 01-MTF's Shockpuncher Rocket Launcher Peak State ------------ > --- POWER ------------ Cooled Ion Engine > --- PROPULSION ------- Cooled Gravmag System > --- UTILITY ---------- Experimental Heat Sink Large Battery Advanced Energy Well Medium Matter Pod Signal Interpreter Seismic Detector Targeting Computer Actuator Array Drone Bay > --- WEAPON ----------- 01-MTF's Shockpuncher > --- INVENTORY -------- (None) [Rating: 46] Favorites ----------- Power Cooled Ion Engine Engine Cooled Ion Engine Propulsion Cooled Gravmag System Treads Light Treads Hover Unit Cooled Gravmag System Utility Signal Interpreter Device Seismic Detector Storage Medium Matter Pod Processor Signal Interpreter Protection Light Armor Plating Weapon 01-MTF's Shockpuncher Energy Gun 01-MTF's Shockpuncher Energy Cannon Advanced Beam Cannon Ballistic Gun Light Assault Rifle Ballistic Cannon Improved Light Cannon Launcher Rocket Launcher Special Weapon Welding Torch Impact Weapon Hammer Special Melee Weapon Datajack Build | -11 -10 -9 -9 ------- Run | Yrd Mat Mat Sto Slots Evolved 8 | 5 . 2 1 Power . | . . . . Propulsion . | . . . . Utility 8 | 5 . 2 1 Weapon . | . . . . Parts Attached 36 | 7 6 2 21 Power 5 | 1 . . 4 Engine 5 | 1 . . 4 Core . | . . . . Reactor . | . . . . Propulsion 2 | 1 . . 1 Treads 1 | 1 . . . Leg . | . . . . Wheel . | . . . . Hover 1 | . . . 1 Flight . | . . . . Utility 18 | 4 3 2 9 Device 8 | . 1 2 5 Storage 3 | . 1 . 2 Processor 2 | 2 . . . Hackware . | . . . . Protection 5 | 2 1 . 2 Artifact . | . . . . Weapon 11 | 1 3 . 7 Energy Gun 3 | . . . 3 Energy Cannon 1 | . . . 1 Ballistic Gun 2 | 1 . . 1 Ballistic Cannon 1 | . . . 1 Launcher 1 | . . . 1 Special Weapon 1 | . 1 . . Impact Weapon 1 | . 1 . . Slashing Weapon . | . . . . Piercing Weapon . | . . . . Special Melee Weapon 1 | . 1 . . Unidentified Prototypes 10 | . . . 10 Parts Lost 3 | . . 1 2 Power . | . . . . Propulsion . | . . . . Utility 3 | . . 1 2 Weapon . | . . . . Highest Loss Streak 2 | . . 1 2 To Critical Strikes . | . . . . Average Backups . | . . . . Power . | . . . . Propulsion . | . . . . Utility . | . . . . Weapon . | . . . . Tool/Special . | . . . . Unused Backups . | . . . . Power . | . . . . Propulsion . | . . . . Utility . | . . . . Weapon . | . . . . Tool/Special . | . . . . Average Slot Usage (%) 98 | . 96 96 99 Engine 8 | . 11 9 8 Treads 3 | . 11 9 1 Hover 5 | . . . 6 Device 23 | . 9 17 26 Storage 20 | . 9 9 23 Processor 17 | . 22 19 16 Protection 9 | . 22 19 6 Energy Gun 5 | . . . 7 Impact Weapon 1 | . 3 9 . Peak Build Rating 46 | 7 9 12 46 Average Rating 32 | 5 8 11 38 On Entrance 7 | . 7 9 12 Avg Prop Armor Cover (%) . | . . . . Naked Turns . | . . . . Heaviest Build 33 | 10 14 19 33 Greatest Support 20 | 20 20 20 20 Greatest Overweight (x) 2 | . . . 2 Average Overweight (x) 1 | . . . 1 Largest Inventory Capacity 3 | . . . 3 Average Capacity . | . . . . Most Carried 2 | . . . 2 Average Carried . | . . . . Final Capacity 3 | . . . 3 Final Carried 2 | . . . 2 Class Distribution -------------------- 44% | Hacker-Mutant 40% | Commander-Mutant 15% | Scavenger-Mutant Dominant Class ---------------- Hacker-Mutant | -10/Materials Hacker-Mutant | -9/Materials Commander-Mutant | -9/Storage Resources | -11 -10 -9 -9 ----------- Run | Yrd Mat Mat Sto Matter Collected 761 | 270 91 55 345 Remotely . | . . . . Salvage Created 957 | . . 126 831 Parts 79 | . 1 5 73 Haulers Intercepted . | . . . . Recyclers Shooed . | . . . . Parts Field Recycled . | . . . . Retrieved Matter . | . . . . Parts Self-Destructed . | . . . . Prevented . | . . . . Parts Restored . | . . . . Kills | -11 -10 -9 -9 ------- Run | Yrd Mat Mat Sto Combat Hostiles Destroyed 31 | . 2 6 23 Melee 4 | . 2 2 . Guns 20 | . . . 20 AOE 3 | . . . 3 Classes Destroyed 8 | . 1 2 5 Worker 1 | . . . 1 Builder 3 | . . . 3 Mechanic 1 | . . . 1 Watcher 2 | . . . 2 Swarmer 9 | . 2 2 5 Grunt 10 | . . 2 8 Duelist 1 | . . . 1 Sentry 11 | . . 2 9 Best Kill Streak 9 | . 2 3 9 Combat Bots Only 7 | . 2 3 7 Max Kills in Single Turn 4 | . 1 1 4 Gunslinging . | . . . . Exploded 2 | . . . 2 Melee 1 | . 1 1 . Uniques/NPCs Destroyed . | . . . . Combat | -11 -10 -9 -9 -------- Run | Yrd Mat Mat Sto Hostile Shots Fired 195 | . 54 83 58 Missed 52 | . 15 19 18 Hits 143 | . 39 64 40 Projectile 143 | . 39 64 40 Critical Strikes 2 | . . 2 . Damage Taken 1808 | . 198 482 1128 Core 1277 | . 119 296 862 Absorbed by Shields . | . . . . Redirected to Core 1063 | . 76 242 745 Ignored by Resistances 691 | . 141 313 237 Regen/Repaired (Parts) 77 | . . . 77 Core Remaining (%) 90 | 100 80 . . Volleys Fired 56 | . . . 56 Largest 1 | . . . 1 Hottest 50 | . . . 50 Shots Fired 56 | . . . 56 Gun 46 | . . . 46 Cannon 3 | . . . 3 Launcher 7 | . . . 7 Special . | . . . . Kinetic 3 | . . . 3 Thermal . | . . . . Explosive 7 | . . . 7 Electromagnetic 46 | . . . 46 Robot Hit Streak 15 | . . . 15 Robot Miss Streak 1 | . . . 1 Penetration Max . | . . . . Secondary Targets . | . . . . Shots Hit Robots 65 | . 3 22 40 Core Hits 41 | . 1 3 37 Critical Kills . | . . . . Critical Parts Destroyed 3 | . . 3 . Critical Strikes 9 | . . 4 5 Corrupt 5 | . . . 5 Smash 4 | . . 4 . Melee Attacks 26 | . 3 22 1 Impact 23 | . . 22 1 Slashing . | . . . . Piercing . | . . . . Sneak Attacks 1 | . 1 . . Combat Hostiles . | . . . . Follow-up Attacks . | . . . . Damage Inflicted 2324 | . 17 543 1764 Guns 1343 | . . . 1343 Cannons 37 | . . . 37 Explosions 375 | . . . 375 Melee 543 | . . 543 . Ramming 26 | . 17 . 9 Kinetic 37 | . . . 37 Thermal 375 | . . . 375 Explosive . | . . . . Electromagnetic 1343 | . . . 1343 Impact 543 | . . 543 . Slashing . | . . . . Piercing . | . . . . Highest Corruption 2 | . . . 2 Average Corruption 1 | . . . 1 Corruption Purged . | . . . . Corruption Blocked . | . . . . Overload Shots . | . . . . Overflow Damage 141 | . . 126 15 Projectiles . | . . . . Explosions 15 | . . . 15 Melee 126 | . . 126 . Knockbacks 3 | . . 2 1 Impact 2 | . . 2 . Kinetic 1 | . . . 1 Secondary . | . . . . Self-Inflicted Damage 54 | . . . 54 Shots 2 | . . . 2 Rammed 8 | . 6 . 2 Targets Rammed 10 | . 8 . 2 Kicked . | . . . . Crushed 2 | . 2 . . Highest Temperature 18 | . . 15 18 Average Temperature 8 | . . 5 13 Received Heat Transfer 399 | . . 288 111 Siege Activations . | . . . . Martial Activations . | . . . . Shielding Activations . | . . . . Robots Disrupted 1 | . . . 1 Combat Hostiles 1 | . . . 1 Robots Corrupted 4 | . . 4 . Combat Hostiles 4 | . . 4 . Parts Fried 9 | . . 3 6 Impact Corruptions 6 | . . 6 . Robots Melted . | . . . . Combat Hostiles . | . . . . Parts Melted . | . . . . Heat Transferred 450 | . . . 450 Parts Sabotaged . | . . . . Parts Stolen . | . . . . Parts Stripped . | . . . . Power Chain Reactions 5 | . . . 5 Alert | -11 -10 -9 -9 ------- Run | Yrd Mat Mat Sto Maximum Alert Level 2 | . . . 2 Low Security (%) 88 | 100 100 100 85 Level 1 9 | . . . 12 Level 2 1 | . . . 1 Level 3 . | . . . . Level 4 . | . . . . Level 5 . | . . . . High Security . | . . . . Max Security . | . . . . Peak Influence 419 | . 35 80 419 Initial . | . . . . Average 57 | . 2 27 70 Influence Increases 1504 | . 67 190 1247 Destroy 0b10 Robot/C 780 | . 40 120 620 Destroy 0b10 Robot/NC 35 | . . . 35 Destroy Leader 244 | . 10 40 194 Allied During Kill 43 | . . . 43 Trap Triggered on 0b10 10 | . 10 . . Successful Hack 36 | . 7 . 29 Select Force Hacks 30 | . . . 30 Disable Machine 20 | . . . 20 Anti-Garrison Action 150 | . . . 150 Destroy Structure 36 | . . . 36 Lose Combat Pursuer 120 | . . 30 90 Influence Decreases 1504 | . 67 190 1247 Time Decay 1447 | . 67 185 1195 Lost Part 17 | . . 5 12 Lost Ally 40 | . . . 40 Squads Dispatched 6 | . . . 6 Investigation 1 | . . . 1 Extermination . | . . . . Reinforcement 4 | . . . 4 Assault 1 | . . . 1 Garrison . | . . . . Intercept . | . . . . Searches Triggered . | . . . . Construction Impeded 1 | . . . 1 Haulers Reinforced . | . . . . Active Scanning Responses . | . . . . Cargo Convoy Interrupts . | . . . . Stealth | -11 -10 -9 -9 --------- Run | Yrd Mat Mat Sto Distress Signals 3 | . 1 . 2 Communications Jammed . | . . . . Distress Signals . | . . . . Times Spotted 58 | . 5 8 45 Peak Tracking Total 5 | . 3 4 5 Tactical Retreats 8 | . . 1 7 ECM-based Alert Blocks 6 | . . . 6 Traps | -11 -10 -9 -9 ------- Run | Yrd Mat Mat Sto Traps Triggered 3 | . 1 . 2 Indirectly . | . . . . Trap Hack Attempts 11 | . 11 . . Triggered . | . . . . Disarmed . | . . . . Reprogrammed 3 | . 3 . . Reused 1 | . 1 . . Traps Extracted . | . . . . Installed . | . . . . Triggered 1 | . 1 . . Machines | -11 -10 -9 -9 ---------- Run | Yrd Mat Mat Sto Machines Disabled 6 | . . . 6 Max in Single Turn 1 | . . . 1 Garrison Access 1 | . . . 1 Machines Repaired . | . . . . Machines Dismantled . | . . . . Machines Sabotaged . | . . . . Overloaded Fab Kills . | . . . . Hacking | -11 -10 -9 -9 --------- Run | Yrd Mat Mat Sto Machines Accessed 17 | . 3 2 12 Terminals 11 | . 2 1 8 Fabricators . | . . . . Repair Stations 2 | . . . 2 Recycling Units 2 | . 1 . 1 Scanalyzers 1 | . . 1 . Garrison Access 1 | . . . 1 Total Hacks 52 | . 4 7 41 Successful 42 | . 3 5 34 Failed 10 | . 1 2 7 Catastrophic 1 | . 1 . . Database Lockouts . | . . . . Manual 30 | . 4 4 22 Terminals 36 | . 3 3 30 Fabricators . | . . . . Repair Stations 7 | . . . 7 Recycling Units 2 | . 1 . 1 Scanalyzers 4 | . . 4 . Garrison Access 3 | . . . 3 Terminal Hacks 11 | . . . 11 Record 3 | . . . 3 Part Schematic 3 | . . . 3 Robot Schematic 2 | . . . 2 Open Door 2 | . . . 2 Branch Access Points 1 | . . . 1 Fabricator Hacks . | . . . . Repair Station Hacks 6 | . . . 6 Scan Component 3 | . . . 3 Repair 3 | . . . 3 Recycling Unit Hacks . | . . . . Scanalyzer 3 | . . 3 . Retrieve Study 3 | . . 3 . Garrison Access Hacks . | . . . . Unauthorized Hacks 21 | . 2 2 17 Terminals 16 | . 2 1 13 Track 3 | . . 1 2 Assimilate 5 | . 1 . 4 Botnet 4 | . 1 . 3 Detonate 1 | . . . 1 Disrupt 3 | . . . 3 Fabricators . | . . . . Repair Stations . | . . . . Recycling Units 1 | . . . 1 Tunnel 1 | . . . 1 Scanalyzers 1 | . . 1 . Researchers 1 | . . 1 . Garrison Access 3 | . . . 3 Broadcast 1 | . . . 1 Decoy 1 | . . . 1 Reprogram 1 | . . . 1 Data Cores Recovered . | . . . . Used . | . . . . Hacking Detections 14 | . 2 2 10 Full Trace Events 1 | . . . 1 Feedback Events . | . . . . Feedback Blocked . | . . . . Robot Schematics Acquired 2 | . . . 2 Robots Built . | . . . . Authchips . | . . . . Time . | . . . . Total Robot Build Rating . | . . . . Part Schematics Acquired 3 | . . . 3 Parts Built . | . . . . Authchips . | . . . . Time . | . . . . Total Part Build Rating . | . . . . Part Studies Acquired 3 | . . 3 . Parts Repaired 3 | . . . 3 Time 138 | . . . 138 Parts Recycled . | . . . . Recycled Matter . | . . . . Retrieved Matter . | . . . . Retrieved Components . | . . . . Parts Scanalyzed . | . . . . Part Schematics Acquired . | . . . . Parts Damaged . | . . . . Bothacking | -11 -10 -9 -9 ------------ Run | Yrd Mat Mat Sto Used RIF Installer . | . . . . Robots Hacked 2 | . 2 . . Non-combat 1 | . 1 . . Combat 1 | . 1 . . Robot Hacks Applied 2 | . 2 . . parse_system 1 | . 1 . . find_recycling 1 | . 1 . . Relay Couplers Released 1 | . . . 1 Machine Destruction 1 | . . . 1 Fabnet Peak Effective % . | . . . . Robots Rewired . | . . . . Allies Hacked . | . . . . Hacks Repelled . | . . . . Allies | -11 -10 -9 -9 -------- Run | Yrd Mat Mat Sto Total Allies 10 | . . . 10 Largest Group 10 | . . . 10 Highest-Rated Group 88 | . . . 88 Highest-Rated Ally 16 | . . . 16 Total Orders 6 | . . . 6 STAY 3 | . . . 3 EXPLORE 3 | . . . 3 Ally Attacks 41 | . . . 41 Total Damage 371 | . . . 371 Kills 8 | . . . 8 Allies Corrupted . | . . . . Allies Melted . | . . . . Intel | -11 -10 -9 -9 ------- Run | Yrd Mat Mat Sto Active Infowar (turns) 3906 | . 408 327 3171 Seismic 3906 | . 408 327 3171 ECM 498 | . . 2 496 Robot Analysis Total . | . . . . Derelict Logs Recovered . | . . . . Drone Launches 7 | . . . 7 Drone Recoveries 5 | . . . 5 Exploration | -11 -10 -9 -9 ------------- Run | Yrd Mat Mat Sto Turns Passed 4066 | 89 476 327 3174 Spaces Moved 1904 | 51 274 156 1423 Core 2 | 2 . . . Treads 703 | 49 274 156 224 Legs . | . . . . Wheels . | . . . . Hover 1199 | . . . 1199 Flight . | . . . . Fastest Speed 50 | 50 160 160 150 Average Speed 157 | 155 160 160 157 Slowest Speed 200 | 160 160 160 200 Overloaded Moves . | . . . . Propulsion Burnouts . | . . . . Robots Hopped . | . . . . Potential Cave-ins 3 | . . . 3 Cave-ins Triggered 3 | . . . 3 Exploration Rate (%) 34 | 3 27 14 94 Regions Visited 3 Branch Regions 1 Pre-discovered Areas 1 | . . . 1 Known Exits Taken 3 | 1 1 1 . Unknown Exits Taken . | . . . . Scrap Searched . | . . . . Spaces Dug . | . . . . Terrain Destroyed 56 | . . . 56 Melee . | . . . . Projectile . | . . . . AOE 56 | . . . 56 Terrain Rammed . | . . . . Walls Destroyed . | . . . . Machines Disabled . | . . . . Actions | -11 -10 -9 -9 --------- Run | Yrd Mat Mat Sto Total 2851 | 57 304 194 2296 Wait 746 | . . . 746 Move 1899 | 50 273 155 1421 Hop . | . . . . Pick Up 2 | . . . 2 Fast Attach 32 | 7 4 2 19 Attach . | . . . . Detach . | . . . . Swap 10 | . 2 . 8 Drop 22 | . 3 . 19 Fire 56 | . . . 56 Melee 26 | . 3 22 1 Ram 2 | . . . 2 Kick . | . . . . Crush 8 | . 8 . . Escape Stasis 1 | . . . 1 Rewire 2 | . . . 2 Trap 11 | . 11 . . Miscellaneous 34 | . . 15 19 Route ------- -11/Scrapyard -10/Materials -9/Materials -9/Storage (discovered 2 exits: *Mat / Rec) History --------- Turn | Location | Event 4 | -11/Scrapyard | Upgraded with Utility slot (x5) 43 | -11/Scrapyard | Identified exit to Materials 43 | -11/Scrapyard | Discovered exit to Materials (range 15) 90 | -11/Scrapyard | Entered Materials 306 | -10/Materials | Build established: Hacker-Mutant 558 | -10/Materials | Identified exit to Materials 558 | -10/Materials | Discovered exit to Materials (range 5) 566 | -10/Materials | Entered another Materials area 568 | -9/Materials | Reached level 2 568 | -9/Materials | Reached level 3 571 | -9/Materials | Upgraded with Utility slot (x1) 832 | -9/Materials | Reached level 4 850 | -9/Materials | Upgraded with Utility slot (x1) 870 | -9/Materials | Identified exit to Storage 870 | -9/Materials | Discovered exit to Storage (range 5) 893 | -9/Materials | Entered Storage 909 | -9/Storage | Met 01-MTF 1281 | -9/Storage | Found Prototype Energy Gun 1281 | -9/Storage | Identified 01-MTF's Shockpuncher 1311 | -9/Storage | Reached level 5 1440 | -9/Storage | Reached level 6 1444 | -9/Storage | Upgraded with Utility slot (x1) 1463 | -9/Storage | Destroyed 7 combat bots 2073 | -9/Storage | Identified exit to Materials 2073 | -9/Storage | Discovered exit to Materials (range 12) 2253 | -9/Storage | Build established: Scavenger-Mutant 2353 | -9/Storage | Reached level 7 2412 | -9/Storage | Assisted by bots powering up and referring to "LRC-V3" 2541 | -9/Storage | Repaired Lgt. Armor Plating 2641 | -9/Storage | Repaired Adv. Energy Well 2715 | -9/Storage | Build established: Commander-Mutant 2735 | -9/Storage | Repaired Med. Matter Pod 3138 | -9/Storage | Identified exit to Recycling 3944 | -9/Storage | Reached level 8 4058 | -9/Storage | Crushed by falling debris 4064 | -9/Storage | Crushed by falling debris 4065 | -9/Storage | Core integrity fell below 50% 4067 | -9/Storage | Crushed by falling debris 4067 | -9/Storage | Smashed by cave-in Last Messages --------------- 03944_ Reached level 8. 03974_ Upgraded: Inventory Capacity (+3) 03976_ Acquired Rocket Launcher. 03978_ Acquired Imp. Light Cannon. 03991_ K-01 Serf collects debris. 04040_ The unstable cave ceiling collapses. 04043_ U-05 Engineer builds a Wall. 04045_ U-05 Engineer knocked back. 04047_ U-05 Engineer destroyed. 04050_ Acquired 7 matter. 04054_ The unstable cave ceiling collapses. 04058_ Crushed by falling debris. 04058_ Targeting Computer destroyed. 04058_ System corrupted by crushing effect (+1). 04058_ The unstable cave ceiling collapses. 04064_ Crushed by falling debris. 04064_ Seismic Detector destroyed. 04064_ System corrupted by crushing effect (+1). 04067_ The unstable cave ceiling collapses. 04067_ Crushed by falling debris. Map ----- +----------------------------------------------------+ | ??????????????????# #???????????? | | ########??????##### #???????????? | | #[[[ ]]#?????## + ###########?? | | #[[[ ]]#?????#T # # #?? | | #! =]]#?????## ### # !]]#?? | | #! %%!!#?????# !##= # g ] #?? | | ##" "###?????#! !##% # g ]g #?? | | #! % T=#?#####! !## %g% "" g ##? | | #%%* ###?# " #! !## # "" #? | | ####+##### "###### a# "" ##? | | ## %%%! # ###### # k #?? | | % %// =%=*%% % ####"T"####?? | | ##/###%% %/ *=%####/##########??? | | #*% ^ [%# % #??? | | #!= # = * #??? | | # # [ ! /#??? | | # # ! #??? | | """ # # [ #??? | | """ # / #??? | | """ ##"""T"""# ##### #########??? | | ########## ##?# ###????????? | | ######?????### ### "????????? | | ????????####T# ! "?>??????? | | ????????#== # =% "????????? | | ????????#== + ## # #"##??#???? | | ????????#== ##/##### #@ # #???? | | ????????###### ## #????? | | ?????????????# """ T# # # #???? | | ?????????????# "T" ##########???? | | ?????????????# #????##??????? | | ?????????????# != ##???????????? | | ?????????????# != #???????????? | | ?????????????##########???????????? | | | | | | | | | | | | | | | | | | | | | | | | | | | | | | | | | | | +----------------------------------------------------+ Best States ------------- Heat Dissipation 51 Energy Generation 14 Energy Capacity 980 Matter Stores 400 Matter Capacity 400 Sight Range 16 Terrain Scan Density 10 ECM Strength 1 Armor Coverage 300 Resistance: KI 45 Resistance: TH 50 Resistance: EX 50 Resistance: EM 35 Resistance: I 35 Resistance: S 35 Resistance: P 35 Evasion (%) 40 Targeting Accuracy 5 Recoil Reduction 1 Offensive Hacking 25 Defensive Hacking 5 Item Schematics ----------------- Component Analysis Suite | -9/Storage | Hacked Hrd. Medium Armor Plating | -9/Storage | Hacked Gravmag System | -9/Storage | Hacked Robot Schematics ------------------ G-34 Mercenary | -9/Storage | Hacked B-36 Bruiser | -9/Storage | Hacked Fabricated ------------ Nothing Repaired ---------- Lgt. Armor Plating | 55% | -9/Storage Adv. Energy Well | 63% | -9/Storage Med. Matter Pod | 68% | -9/Storage Studied --------- Lgt. Treads | -9/Materials | Hacked Lgt. Ion Engine | -9/Materials | Hacked Hammer | -9/Materials | Hacked Alien Tech Used ----------------- None Achievements -------------- None Challenges ------------ None RPGLIKE | -11 -10 -9 -9 --------- Run | Yrd Mat Mat Sto Levels Raised 7 | . . 3 4 XP Earned 16629 | 6000 300 4322 6007 XP Spent 16450 | 5500 . 4300 6650 Upgrades 21 | 5 . 2 14 Utility Slot 8 | 5 . 2 1 Inventory Capacity 3 | . . . 3 Hack Attack % 1 | . . . 1 Hack Defense % 1 | . . . 1 KI Resistance % 2 | . . . 2 TH Resistance % 3 | . . . 3 EX Resistance % 3 | . . . 3 Protomatter Created 581 | . . 110 471 Integrity Restored 674 | . . 330 344 Core 674 | . . 330 344 Protomatter Decayed 391 | . . . 391 Game ------ Seed ExplosiveMobileStripper Manual? 0 Play Time 00:47:07 Cumulative 538.8 hours Start 2026.08.24 @ 21:14:08 End 2026.08.24 @ 22:02:42 Sessions 1 Manual Loads 0 Difficulty Explorer Special Mode Winter2019/RPGLIKE Game No. 39 Rogue 5 Adventurer 1 Explorer 33 Win Type - Total 6 Types 6/0/0/0/0/0/0/0/0/0 Lore% 55 Gallery% 58 Achievement% 52 Wizard Run 0 Options --------- Layout 0 ASCII 0 Keyboard 0 Movement Mouse Keybinds 0 Fullscreen 1 Font 18/X11 Map View 38x25 Zoom Use 95% Tactical HUD 1 Map Filters NONE Filters NONE Steam 1 RUN: 7277acd1-578d-4d6b-8688-50134f0a4b5a